Cogmind - Beta 13 @@@ ROGUE MODE // 2024.04.20 @ 15:10:27 Player: Mantreise Result: Destroyed by X-67 Chaingunner with Minigun Performance ------------- Evolutions (3) 1500 Regions Visited (6) 1200 Robots Destroyed (18) 90 Value Destroyed (673) 673 Prototype IDs (0) 0 Alien Tech Used (0) 0 Bonus (452) 452 TOTAL SCORE: 3915 Bonus ------- Follower Combat Kills 252 Entered Garrisons 200 Cogmind --------- Core Integrity 0/700 Matter 300/300 Energy 99/100 System Corruption 3% Temperature Cool (0) Movement Core (50) Location -7/Garrison Parts ------- > --- POWER (2) -------- (None) > --- PROPULSION (4) --- Surge Thruster > --- UTILITY (5) ------ Improved Signal Interpreter > --- WEAPON (2) ------- Blade Saw > --- INVENTORY (5) ---- Concussive RPG (1) Datajack Peak State ------------ > --- POWER ------------ Light Nuclear Core > --- PROPULSION ------- Surge Thruster Surge Thruster Surge Thruster Surge Thruster > --- UTILITY ---------- Improved Signal Interpreter Reaction Control System > --- WEAPON ----------- Concussive RPG Blade Saw > --- INVENTORY -------- Datajack [Rating: 27] Favorites ----------- Power Ion Engine Engine Ion Engine Power Core Micro Nuclear Core Propulsion Flight Unit Leg Aluminum Leg Wheel Wheel Hover Unit Gravmag System Flight Unit Flight Unit Utility Sensor Array Device Sensor Array Processor Improved Signal Interpreter Hackware Hacking Suite Weapon Light Assault Rifle Ballistic Gun Light Assault Rifle Launcher Grenade Launcher Slashing Weapon Blade Saw Special Melee Weapon Datajack Build | -11 -10 -10 -9 -8 -7 -7 ------- Run | Yrd Mat Min Mat Mat Fac Gar Slots Evolved 6 | . . . 2 2 2 . Power 1 | . . . . . 1 . Propulsion 2 | . . . 1 1 . . Utility 3 | . . . 1 1 1 . Weapon . | . . . . . . . Parts Attached 41 | 7 9 . 8 4 2 11 Power 6 | 1 . . 1 1 1 2 Engine 3 | 1 . . 1 1 . . Core 3 | . . . . . 1 2 Reactor . | . . . . . . . Propulsion 19 | 4 3 . 6 1 1 4 Treads . | . . . . . . . Leg 2 | 2 . . . . . . Wheel 3 | 2 1 . . . . . Hover 1 | . . . . . 1 . Flight 13 | . 2 . 6 1 . 4 Utility 6 | 1 2 . . 1 . 2 Device 3 | 1 1 . . . . 1 Storage . | . . . . . . . Processor 2 | . . . . 1 . 1 Hackware 1 | . 1 . . . . . Protection . | . . . . . . . Artifact . | . . . . . . . Weapon 10 | 1 4 . 1 1 . 3 Energy Gun . | . . . . . . . Energy Cannon . | . . . . . . . Ballistic Gun 3 | 1 2 . . . . . Ballistic Cannon . | . . . . . . . Launcher 3 | . . . 1 . . 2 Special Weapon . | . . . . . . . Impact Weapon . | . . . . . . . Slashing Weapon 1 | . . . . . . 1 Piercing Weapon . | . . . . . . . Special Melee Weapon 3 | . 2 . . 1 . . Unidentified Prototypes . | . . . . . . . Corrupted Parts 3 | . . . . . . 3 System Corruption 3 | . . . . . . 3 Parts Lost 21 | . . . 9 1 . 11 Power 4 | . . . 1 . . 3 Propulsion 11 | . . . 5 1 . 5 Utility 3 | . . . 2 . . 1 Weapon 3 | . . . 1 . . 2 Highest Loss Streak 7 | . . . 7 1 . 6 To Critical Strikes . | . . . . . . . Average Slot Usage (%) 67 | . 98 100 74 33 43 33 Engine 9 | . 14 14 10 7 7 1 Wheel 9 | . 27 . . . . . Flight 13 | . . 28 29 22 15 11 Device 10 | . 20 14 9 . . 1 Processor 2 | . . . . . 7 9 Hackware 4 | . 5 14 7 . . . Ballistic Gun 12 | . 27 14 10 . . . Special Melee Weapon 3 | . . 14 7 3 7 2 Naked Turns . | . . . . . . . Heaviest Build 10 | 8 10 8 10 4 10 10 Greatest Support 20 | 20 20 8 12 12 9 9 Greatest Overweight (x) 3 | 2 . . 1 . 1 3 Average Overweight (x) . | . . . . . . . Largest Inventory Capacity 5 | 5 5 5 5 5 5 5 Average Capacity 5 | 5 5 5 5 5 5 5 Most Carried 5 | 2 5 2 5 4 4 5 Average Carried 2 | . 1 2 2 2 3 1 Final Capacity 5 | 5 5 5 5 5 5 5 Final Carried 4 | 1 2 2 3 2 4 2 Class Distribution -------------------- 66% | Mutant 33% | Scavenger-Mutant Dominant Class ---------------- Mutant | -10/Materials Scavenger-Mutant | -10/Mines Scavenger-Mutant | -9/Materials Mutant | -8/Materials Mutant | -7/Factory Mutant | -7/Garrison Resources | -11 -10 -10 -9 -8 -7 -7 ----------- Run | Yrd Mat Min Mat Mat Fac Gar Matter Collected 773 | 309 165 49 58 . . 192 Remotely . | . . . . . . . Salvage Created 413 | 102 163 . 148 . . . Parts 39 | 8 17 . 14 . . . Haulers Intercepted . | . . . . . . . Recyclers Shooed . | . . . . . . . Parts Field Recycled . | . . . . . . . Retrieved Matter . | . . . . . . . Parts Self-Destructed . | . . . . . . . Prevented . | . . . . . . . Kills | -11 -10 -10 -9 -8 -7 -7 ------- Run | Yrd Mat Min Mat Mat Fac Gar Combat Hostiles Destroyed 11 | . 5 . 6 . . . Guns 10 | . 5 . 5 . . . AOE 1 | . . . 1 . . . Classes Destroyed 8 | 2 5 . 1 . . . Worker 1 | . 1 . . . . . Tunneler 2 | 2 . . . . . . Recycler 1 | 1 . . . . . . Operator 1 | . 1 . . . . . Watcher 2 | . 2 . . . . . Swarmer 8 | . 4 . 4 . . . Grunt 2 | . 1 . 1 . . . Brawler 1 | . . . 1 . . . Best Kill Streak 4 | 2 3 . 4 . . . Combat Bots Only 4 | . 3 . 4 . . . Max Kills in Single Turn 1 | 1 1 . 1 . . . Gunslinging . | . . . . . . . Exploded 1 | . . . 1 . . . Melee . | . . . . . . . Uniques/NPCs Destroyed . | . . . . . . . Combat | -11 -10 -10 -9 -8 -7 -7 -------- Run | Yrd Mat Min Mat Mat Fac Gar Hostile Shots Fired 299 | . 30 4 77 23 . 165 Missed 118 | . 9 1 31 11 . 66 Damage Taken 2161 | . 236 39 522 153 . 1211 Core 1169 | . 109 13 253 79 . 715 Absorbed by Shields . | . . . . . . . Regen/Repaired (Parts) 47 | . . . . 47 . . Core Remaining (%) 68 | 100 . 51 36 85 . . Volleys Fired 64 | 13 31 . 19 . . 1 Largest 2 | 1 2 . 1 . . 1 Hottest 40 | 20 40 . 30 . . 30 Shots Fired 95 | 13 62 . 19 . . 1 Gun 92 | 13 62 . 17 . . . Cannon . | . . . . . . . Launcher 3 | . . . 2 . . 1 Special . | . . . . . . . Kinetic 92 | 13 62 . 17 . . . Thermal . | . . . . . . . Explosive 3 | . . . 2 . . 1 Electromagnetic . | . . . . . . . Robot Hit Streak 15 | 4 4 . 15 . . . Robot Miss Streak 5 | 1 5 . 3 . . . Penetration Max . | . . . . . . . Secondary Targets 1 | . 1 . . . . . Max Gunslinging Chain 1 | . 1 . . . . . Shots Hit Robots 58 | 11 30 2 13 1 . 1 Core Hits 27 | 4 15 . 8 . . . Critical Kills . | . . . . . . . Critical Parts Destroyed . | . . . . . . . Critical Strikes 1 | . . . . . . 1 Sever 1 | . . . . . . 1 Melee Attacks 10 | . 1 2 . 1 . 6 Impact . | . . . . . . . Slashing 6 | . . . . . . 6 Piercing . | . . . . . . . Sneak Attacks 1 | . 1 . . . . . Combat Hostiles . | . . . . . . . Follow-up Attacks . | . . . . . . . Damage Inflicted 703 | 130 362 . 190 . . 21 Guns 610 | 130 362 . 118 . . . Cannons . | . . . . . . . Explosions 72 | . . . 72 . . . Melee 17 | . . . . . . 17 Ramming 4 | . . . . . . 4 Kinetic 610 | 130 362 . 118 . . . Thermal . | . . . . . . . Explosive 72 | . . . 72 . . . Electromagnetic . | . . . . . . . Impact . | . . . . . . . Slashing 17 | . . . . . . 17 Piercing . | . . . . . . . Highest Corruption 4 | . . . 4 . . 3 Average Corruption 3 | . . . 4 . . 2 Corruption Purged . | . . . . . . . Corruption Blocked . | . . . . . . . Effects 3 | . . . 2 . . 1 Matter Fused 1 | . . . 1 . . . Energy Discharges 1 | . . . 1 . . . Data Loss (major) 1 | . . . . . . 1 Overload Shots . | . . . . . . . Overflow Damage . | . . . . . . . Projectiles . | . . . . . . . Explosions . | . . . . . . . Melee . | . . . . . . . Knockbacks . | . . . . . . . Impact . | . . . . . . . Kinetic . | . . . . . . . Secondary . | . . . . . . . Self-Inflicted Damage 41 | . . . 39 . . 2 Shots 2 | . . . 2 . . . Rammed 1 | . . . . . . 1 Targets Rammed 1 | . . . . . . 1 Kicked . | . . . . . . . Crushed . | . . . . . . . Highest Temperature 9 | . . 3 9 . . 2 Average Temperature 3 | . . 3 4 . . 2 Received Heat Transfer 396 | . 6 24 81 81 . 204 Siege Activations . | . . . . . . . Robots Corrupted . | . . . . . . . Combat Hostiles . | . . . . . . . Parts Fried . | . . . . . . . Impact Corruptions . | . . . . . . . Robots Melted . | . . . . . . . Combat Hostiles . | . . . . . . . Parts Melted . | . . . . . . . Heat Transferred . | . . . . . . . Parts Sabotaged . | . . . . . . . Parts Stolen . | . . . . . . . Parts Stripped . | . . . . . . . Power Chain Reactions . | . . . . . . . Alert | -11 -10 -10 -9 -8 -7 -7 ------- Run | Yrd Mat Min Mat Mat Fac Gar Peak Influence 424 | 15 217 114 266 127 57 424 Initial 84 | . 9 84 44 45 57 39 Average 115 | 7 127 84 138 70 57 168 Maximum Alert Level 2 | . 1 . 1 . . 2 Low Security (%) 85 | 100 85 100 84 100 100 64 Level 1 13 | . 14 . 15 . . 30 Level 2 . | . . . . . . 4 Level 3 . | . . . . . . . Level 4 . | . . . . . . . Level 5 . | . . . . . . . High Security . | . . . . . . . Max Security . | . . . . . . . Squads Dispatched 7 | . 2 . 3 2 . . Investigation 4 | . 1 . 2 1 . . Extermination . | . . . . . . . Reinforcement 3 | . 1 . 1 1 . . Assault . | . . . . . . . Garrison . | . . . . . . . Intercept . | . . . . . . . Searches Triggered . | . . . . . . . Construction Impeded . | . . . . . . . Haulers Reinforced . | . . . . . . . Active Scanning Responses . | . . . . . . . Cargo Convoy Interrupts . | . . . . . . . Stealth | -11 -10 -10 -9 -8 -7 -7 --------- Run | Yrd Mat Min Mat Mat Fac Gar Distress Signals . | . . . . . . . Communications Jammed . | . . . . . . . Distress Signals . | . . . . . . . Times Spotted 73 | . 12 3 20 13 3 22 Peak Tracking Total 13 | . 3 3 10 10 3 13 Tactical Retreats 5 | . . 1 1 1 . 2 Traps | -11 -10 -10 -9 -8 -7 -7 ------- Run | Yrd Mat Min Mat Mat Fac Gar Traps Triggered . | . . . . . . . Indirectly . | . . . . . . . Trap Hack Attempts . | . . . . . . . Triggered . | . . . . . . . Disarmed . | . . . . . . . Reprogrammed . | . . . . . . . Reused . | . . . . . . . Traps Extracted . | . . . . . . . Installed . | . . . . . . . Triggered . | . . . . . . . Machines | -11 -10 -10 -9 -8 -7 -7 ---------- Run | Yrd Mat Min Mat Mat Fac Gar Machines Disabled 4 | . . . 2 . . 2 Max in Single Turn 1 | . . . 1 . . 1 Garrison Relay 2 | . . . . . . 2 Machines Repaired . | . . . . . . . Machines Dismantled . | . . . . . . . Machines Sabotaged . | . . . . . . . Overloaded Fab Kills . | . . . . . . . Hacking | -11 -10 -10 -9 -8 -7 -7 --------- Run | Yrd Mat Min Mat Mat Fac Gar Machines Accessed 12 | . 3 . 7 1 1 . Terminals 8 | . 2 . 6 . . . Fabricators . | . . . . . . . Repair Stations 1 | . . . . 1 . . Recycling Units 2 | . 1 . 1 . . . Scanalyzers . | . . . . . . . Garrison Access 1 | . . . . . 1 . Total Hacks 40 | . 10 . 22 6 2 . Successful 23 | . 6 . 11 5 1 . Failed 17 | . 4 . 11 1 1 . Catastrophic 2 | . . . 2 . . . Database Lockouts . | . . . . . . . Manual 25 | . 7 . 18 . . . Terminals 27 | . 7 . 20 . . . Fabricators . | . . . . . . . Repair Stations 6 | . . . . 6 . . Recycling Units 5 | . 3 . 2 . . . Scanalyzers . | . . . . . . . Garrison Access 2 | . . . . . 2 . Terminal Hacks 5 | . 2 . 3 . . . Branch Access Points 2 | . 1 . 1 . . . Unreport Threat 1 | . . . 1 . . . Zone Layout 2 | . 1 . 1 . . . Fabricator Hacks . | . . . . . . . Repair Station Hacks 5 | . . . . 5 . . Scan Component 3 | . . . . 3 . . Repair 2 | . . . . 2 . . Recycling Unit Hacks 3 | . 2 . 1 . . . Report Inventory 2 | . 1 . 1 . . . Retrieve Components 1 | . 1 . . . . . Scanalyzer . | . . . . . . . Garrison Access Hacks 1 | . . . . . 1 . Unlock Access 1 | . . . . . 1 . Unauthorized Hacks 9 | . 2 . 7 . . . Terminals 8 | . 2 . 6 . . . Botnet 8 | . 2 . 6 . . . Fabricators . | . . . . . . . Repair Stations . | . . . . . . . Recycling Units 1 | . . . 1 . . . Reject 1 | . . . 1 . . . Scanalyzers . | . . . . . . . Garrison Access . | . . . . . . . Data Cores Recovered . | . . . . . . . Used . | . . . . . . . Hacking Detections 10 | . 2 . 6 1 1 . Full Trace Events 4 | . 1 . 2 1 . . Feedback Events . | . . . . . . . Feedback Blocked . | . . . . . . . Robot Schematics Acquired . | . . . . . . . Robots Built . | . . . . . . . Authchips . | . . . . . . . Time . | . . . . . . . Total Robot Build Rating . | . . . . . . . Part Schematics Acquired . | . . . . . . . Parts Built . | . . . . . . . Authchips . | . . . . . . . Time . | . . . . . . . Total Part Build Rating . | . . . . . . . Parts Repaired 2 | . . . . 2 . . Time 62 | . . . . 62 . . Parts Recycled . | . . . . . . . Recycled Matter . | . . . . . . . Retrieved Matter . | . . . . . . . Retrieved Components 9 | . 9 . . . . . Parts Scanalyzed . | . . . . . . . Part Schematics Acquired . | . . . . . . . Parts Damaged . | . . . . . . . Bothacking | -11 -10 -10 -9 -8 -7 -7 ------------ Run | Yrd Mat Min Mat Mat Fac Gar Used RIF Installer . | . . . . . . . Robots Hacked 2 | . 1 . . 1 . . Non-combat 2 | . 1 . . 1 . . Combat . | . . . . . . . Robot Hacks Applied 2 | . 1 . . 1 . . find_recycling 1 | . 1 . . . . . check_alert 1 | . . . . 1 . . Relay Couplers Released 7 | . . . . . . 7 Machine Destruction 7 | . . . . . . 7 Fabnet Peak Effective % . | . . . . . . . Robots Rewired . | . . . . . . . Allies Hacked . | . . . . . . . Hacks Repelled . | . . . . . . . Allies | -11 -10 -10 -9 -8 -7 -7 -------- Run | Yrd Mat Min Mat Mat Fac Gar Total Allies 2 | . . . . . . 2 Largest Group 2 | . . . . . . 2 Highest-Rated Group 190 | . . . . . . 190 Highest-Rated Ally 95 | . . . . . . 95 Total Orders . | . . . . . . . Ally Attacks 16 | . . . . . . 16 Total Damage 807 | . . . . . . 807 Kills 10 | . . . . . . 10 Allies Corrupted 1 | . . . . . . 1 Allies Melted . | . . . . . . . Intel | -11 -10 -10 -9 -8 -7 -7 ------- Run | Yrd Mat Min Mat Mat Fac Gar Robot Analysis Total . | . . . . . . . Derelict Logs Recovered 1 | . . 1 . . . . Drone Launches . | . . . . . . . Drone Recoveries . | . . . . . . . Exploration | -11 -10 -10 -9 -8 -7 -7 ------------- Run | Yrd Mat Min Mat Mat Fac Gar Turns Passed 1170 | 97 377 33 239 129 73 222 Spaces Moved 1474 | 60 274 81 476 165 138 280 Core 127 | 11 . . . . . 116 Treads . | . . . . . . . Legs 7 | 7 . . . . . . Wheels 294 | 42 252 . . . . . Hover 15 | . . . . . 15 . Flight 1031 | . 22 81 476 165 123 164 Fastest Speed 29 | 50 37 37 34 34 37 29 Average Speed 49 | 89 76 37 35 35 48 49 Slowest Speed 200 | 150 80 37 120 37 120 200 Overloaded Moves . | . . . . . . . Propulsion Burnouts . | . . . . . . . Robots Hopped 9 | . . . 3 5 . 1 Cave-ins Triggered . | . . . . . . . Exploration Rate (%) 22 | 5 30 23 37 21 5 35 Regions Visited 6 Branch Regions 1 Pre-discovered Areas . | . . . . . . . Known Exits Taken 3 | . 1 . . 1 1 . Unknown Exits Taken 3 | 1 . 1 1 . . . Scrap Searched . | . . . . . . . Spaces Dug 7 | . . . 7 . . . Terrain Destroyed 14 | . . . 13 . . 1 Melee . | . . . . . . . Projectile . | . . . . . . . AOE 14 | . . . 13 . . 1 Terrain Rammed . | . . . . . . . Walls Destroyed . | . . . . . . . Machines Disabled . | . . . . . . . Actions | -11 -10 -10 -9 -8 -7 -7 --------- Run | Yrd Mat Min Mat Mat Fac Gar Total 1807 | 91 384 82 526 229 144 351 Wait 176 | . 55 . 19 62 . 40 Move 1450 | 59 273 80 469 154 137 278 Hop 9 | . . . 3 5 . 1 Pick Up 41 | 9 9 . 7 3 3 10 Fast Attach . | . . . . . . . Attach 35 | 7 3 . 7 4 2 12 Detach 3 | . . . 1 . 1 1 Swap 7 | . 6 . 1 . . . Drop 11 | 3 6 . . . 1 1 Fire 64 | 13 31 . 19 . . 1 Melee 10 | . 1 2 . 1 . 6 Ram 1 | . . . . . . 1 Kick . | . . . . . . . Crush . | . . . . . . . Escape Stasis . | . . . . . . . Rewire . | . . . . . . . Trap . | . . . . . . . Miscellaneous . | . . . . . . . Route ------- -11/Scrapyard -10/Materials -10/Mines -9/Materials (discovered 2 exits: *Mat / Min) -8/Materials -7/Factory -7/Garrison History --------- Turn | Location | Event 2 | -11/Scrapyard | Discovered new exit (range 16) 98 | -11/Scrapyard | Entered Materials 272 | -10/Materials | Discovered new exit (range 13) 313 | -10/Materials | Build established: Mutant 345 | -10/Materials | Identified exit to Mines 475 | -10/Materials | Entered Mines 476 | -10/Mines | Assembled infested the area 500 | -10/Mines | Discovered new exit (range 14) 508 | -10/Mines | Entered Materials 508 | -9/Materials | Evolved 2 slots: Propulsion x1, Utility x1 625 | -9/Materials | Build established: Scavenger-Mutant 703 | -9/Materials | Identified exit to Mines 730 | -9/Materials | Core integrity fell below 50% 746 | -9/Materials | Discovered new exit (range 4) 747 | -9/Materials | Entered another Materials area 747 | -8/Materials | Evolved 2 slots: Propulsion x1, Utility x1 761 | -8/Materials | Lost 7 parts (1p3n2u1w) 776 | -8/Materials | Repaired Lgt. Ion Engine 814 | -8/Materials | Repaired Broken Flight Unit 868 | -8/Materials | Discovered new exit (range 13) 876 | -8/Materials | Identified exit to Factory 876 | -8/Materials | Entered Factory 876 | -7/Factory | Evolved 2 slots: Power x1, Utility x1 948 | -7/Factory | Identified exit to Garrison 949 | -7/Factory | Entered Garrison 954 | -7/Garrison | Build established: Mutant 997 | -7/Garrison | Triggered checkpoint 1000 | -7/Garrison | Garrison Relay disabled 1059 | -7/Garrison | Core integrity fell below 50% 1073 | -7/Garrison | Lost 6 parts (2p2n2w) 1077 | -7/Garrison | Triggered checkpoint 1084 | -7/Garrison | Found embedded Infiltrators 1086 | -7/Garrison | Core integrity fell below 20% 1121 | -7/Garrison | Garrison Relay disabled 1159 | -7/Garrison | Triggered checkpoint 1164 | -7/Garrison | Triggered checkpoint 1171 | -7/Garrison | Destroyed by X-67 Chaingunner with Minigun Last Messages --------------- Relay Coupler [Swarmer] tumbles out of relay unit. Relay Coupler [Sentry] tumbles out of relay unit. Relay Coupler [Brawler] tumbles out of relay unit. B-48 Gladiator shuts down. Acquired Concussive RPG. B-48 Gladiator destroyed. Slug penetrates G-47 Trooper. G-47 Trooper destroyed. Acquired 3 matter. Acquired 7 matter. QP-UH5(x) destroyed. Y-54 Guardian Flak Gun severed. Surge Thruster destroyed. Lgt. Nuclear Core destroyed. C-30 ARC bursts open, deploying its payload. S-27 Virus unfolds itself. Reaction Control System destroyed. Surge Thruster destroyed. Beams of light sweep through the air. An alarm sounds. Surge Thruster destroyed. Map ----- +----------------------------------------------------+ | ?????????????????????????????????????????????????? | | ?????????????????????????????????????????????????? | | ?????????????????????????????????????????????????? | | ?????????????????????????????????????????????????? | | ?????????????????????????????????????????????????? | | ?????????????????????????????????????????????????? | | ?????????????????????????????????????????????????? | | ?????????????????????????????????????????????????? | | ?????????????????????????????????????????????????? | | ?????????????????????????????????????????????????? | | ?????????????????????????????????????????????????? | | ?????????????????????????????????????????????????? | | ?????????????????????????????????????????????????? | | ?????????????????????????????????????????????????? | | ?????????????????????????????????????????????????? | | ?????????????????????????????????????????????????? | | ?????????????????????????????????????????????????? | | ?????????????????????????????????????????????????? | | ?????????????????????????????????????????????????? | | ?????????????????????????????????????????????????? | | ?????????????????????????????????????????????????? | | ?????????????????????????????????????????????????? | | ?????????????????????????##??????????????????????? | | ????????????????# ??????? ??????????????????????? | | ????????????????# ######+######""""###########?? | | ????????????????# @ ??? | | ????????????????# ???? | | ????????????????# ?????? | | ????????????????############x ## ## #??????? | | ?????????????????????????###xs ## ## ###????? | | ?????????????????????????# s "%"#????? | | ?????????????????????????# s " #????? | | ?????????????????????????# #????? | | ?????????????????????????# #????? | | ?????????????????????????### ## ## ###????? | | ?????????????????########### ## ## ######## | | ???????????####### s | | ???????????# # | | ???????????# ##### ####### | | ???????????# #???# ############""""## ##?????# | | ???????????# ##??# #????????????????# #??????# | | ?????????### #### #????????????????# #??????# | | ?????????# # # #????????????????# #??????# | | ?????????# # #????????????????# #??????# | | ?????????# #### #????????????????# #??????# | | ?????????# #??# #????????????????# #??????# | | ?????????#"# #??# #????????????????# ######## | | ?????????### #??# #????????????????# | | ???????????# #### #????????????????# | | ???????????# / / #????????????????########### | +----------------------------------------------------+ Best States ------------- Heat Dissipation 34 Energy Generation 20 Energy Capacity 250 Matter Stores 300 Matter Capacity 300 Sight Range 16 Robot Scan Range 14 Terrain Scan Range 16 Terrain Scan Density 210 Evasion (%) 71 Offensive Hacking 10 Item Schematics ----------------- None Robot Schematics ------------------ None Fabricated ------------ Nothing Alien Tech Used ----------------- None Achievements -------------- I Survived The Infestation Challenges ------------ None Game ------ Seed AbsorptionControlShield Manual? 0 Play Time 00:29:42 Cumulative 21.6 hours Start 2024.04.20 @ 14:28:15 End 2024.04.20 @ 15:10:27 Sessions 1 Manual Loads 0 Difficulty Rogue Special Mode None Game No. 29 Rogue 27 Adventurer 2 Explorer 0 Win Type - Total 0 Types 0/0/0/0/0/0/0/0/0 Lore% 22 Gallery% 29 Achievement% 24 Wizard Run 0 Options --------- Layout 0 ASCII 0 Keyboard 0 Movement Mouse Keybinds 0 Fullscreen 2 Font 18/Smallcaps Map View 38x25 Zoom Use 97% Tactical HUD 0 Map Filters NONE Filters NONE Steam 1 RUN: e26c1dae-fef6-4b63-9998-9b5e2a7a6091